Cogmind - Beta 12 @@@ ROGUE MODE // 2023.12.28 @ 21:40:15 Player: Ischenous Result: Destroyed by G-34 Mercenary with Small Laser Performance ------------- Evolutions (1) 500 Regions Visited (2) 400 Robots Destroyed (11) 55 Value Destroyed (222) 222 Prototype IDs (2) 40 Alien Tech Used (0) 0 Bonus (0) 0 TOTAL SCORE: 1217 Bonus ------- None Cogmind --------- Core Integrity 0/400 Matter 290/300 Energy 84/100 System Corruption 1% Temperature Cool (6) Movement Core (50) Location -9/Materials Parts ------- > --- POWER (1) -------- (None) > --- PROPULSION (2) --- (None) > --- UTILITY (4) ------ Terrain Scan Processor > --- WEAPON (2) ------- (None) > --- INVENTORY (5) ---- Light Ion Engine Compact Wheel Medium Storage Unit ECM Suite Peak State ------------ > --- POWER ------------ Light Ion Engine > --- PROPULSION ------- Wheel > --- UTILITY ---------- Small Storage Unit > --- WEAPON ----------- EM Pulse Gun EM Pulse Gun > --- INVENTORY -------- Light Ion Engine Compact Wheel Light Assault Rifle [Rating: 5] Favorites ----------- Power Light Ion Engine Engine Light Ion Engine Propulsion Wheel Wheel Wheel Utility Small Storage Unit Storage Small Storage Unit Processor Terrain Scan Processor Weapon EM Pulse Gun Energy Gun EM Pulse Gun Ballistic Gun Light Assault Rifle Impact Weapon Hammer Build | -11 -10 -9 ------- Run | Jun Mat Mat Slots Evolved 2 | . . 2 Power . | . . . Propulsion . | . . . Utility 2 | . . 2 Weapon . | . . . Parts Attached 9 | 5 . 4 Power 1 | 1 . . Engine 1 | 1 . . Core . | . . . Reactor . | . . . Propulsion 2 | 1 . 1 Treads . | . . . Leg . | . . . Wheel 2 | 1 . 1 Hover . | . . . Flight . | . . . Utility 2 | 1 . 1 Device . | . . . Storage 1 | 1 . . Processor 1 | . . 1 Hackware . | . . . Protection . | . . . Artifact . | . . . Weapon 4 | 2 . 2 Energy Gun 2 | 2 . . Energy Cannon . | . . . Ballistic Gun 1 | . . 1 Ballistic Cannon . | . . . Launcher . | . . . Special Weapon . | . . . Impact Weapon 1 | . . 1 Slashing Weapon . | . . . Piercing Weapon . | . . . Special Melee Weapon . | . . . Unidentified Prototypes . | . . . Parts Lost 8 | . . 8 Power 1 | . . 1 Propulsion 2 | . . 2 Utility 1 | . . 1 Weapon 4 | . . 4 Highest Loss Streak 8 | . . 8 To Critical Strikes . | . . . Average Slot Usage (%) 54 | . 71 38 Engine 10 | . 14 6 Wheel 9 | . 14 5 Storage 12 | . 14 10 Energy Gun 20 | . 28 13 Naked Turns 3 | . . 3 Heaviest Build 12 | 12 12 12 Greatest Support 10 | 10 10 10 Greatest Overweight (x) 2 | 1 1 2 Average Overweight (x) . | . 1 1 Largest Inventory Capacity 8 | 8 8 8 Average Capacity 7 | 7 8 7 Most Carried 8 | 5 4 8 Average Carried 4 | 3 3 5 Final Capacity 8 | 8 8 5 Final Carried 4 | 3 4 4 Class Distribution -------------------- 100% | Mutant Dominant Class ---------------- Mutant | -10/Materials Mutant | -9/Materials Resources | -11 -10 -9 ----------- Run | Jun Mat Mat Matter Collected 267 | 128 97 42 Remotely . | . . . Salvage Created 304 | . 97 207 Parts 21 | . 7 14 Haulers Intercepted . | . . . Recyclers Shooed . | . . . Parts Field Recycled . | . . . Retrieved Matter . | . . . Parts Self-Destructed . | . . . Prevented . | . . . Kills | -11 -10 -9 ------- Run | Jun Mat Mat Combat Hostiles Destroyed 10 | . 4 6 Guns 7 | . 4 3 AOE 3 | . . 3 Classes Destroyed 4 | . 2 2 Builder 1 | . . 1 Swarmer 6 | . 3 3 Grunt 3 | . 1 2 Sentry 1 | . . 1 Best Kill Streak 5 | . 4 5 Combat Bots Only 4 | . 4 4 Max Kills in Single Turn 3 | . 1 3 Gunslinging . | . . . Exploded 2 | . . 2 Melee . | . . . Uniques/NPCs Destroyed . | . . . Combat | -11 -10 -9 -------- Run | Jun Mat Mat Damage Taken 966 | . 58 908 Core 416 | . 7 409 Absorbed by Shields . | . . . Core Remaining (%) 98 | 100 97 . Volleys Fired 25 | . 6 19 Largest 2 | . 2 2 Hottest 80 | . 80 80 Shots Fired 40 | . 12 28 Gun 40 | . 12 28 Cannon . | . . . Launcher . | . . . Special . | . . . Kinetic 6 | . . 6 Thermal . | . . . Explosive . | . . . Electromagnetic 34 | . 12 22 Robot Hit Streak 11 | . 10 11 Robot Miss Streak 3 | . 2 3 Penetration Max . | . . . Secondary Targets 1 | . 1 . Max Gunslinging Chain 1 | . 1 . Shots Hit Robots 30 | . 10 20 Core Hits 16 | . 5 11 Critical Kills . | . . . Critical Parts Destroyed . | . . . Critical Strikes . | . . . Melee Attacks 6 | . . 6 Impact 6 | . . 6 Slashing . | . . . Piercing . | . . . Sneak Attacks . | . . . Combat Hostiles . | . . . Follow-up Attacks . | . . . Damage Inflicted 654 | . 184 470 Guns 314 | . 119 195 Cannons . | . . . Explosions 241 | . 65 176 Melee 99 | . . 99 Ramming . | . . . Kinetic 31 | . . 31 Thermal 241 | . 65 176 Explosive . | . . . Electromagnetic 283 | . 119 164 Impact 99 | . . 99 Slashing . | . . . Piercing . | . . . Highest Corruption 1 | . . 1 Average Corruption 1 | . . 1 Corruption Purged . | . . . Corruption Blocked . | . . . Overload Shots . | . . . Overflow Damage . | . . . Projectiles . | . . . Explosions . | . . . Melee . | . . . Knockbacks 1 | . . 1 Impact 1 | . . 1 Kinetic . | . . . Secondary . | . . . Self-Inflicted Damage 15 | . . 15 Shots 1 | . . 1 Rammed . | . . . Targets Rammed . | . . . Kicked . | . . . Crushed . | . . . Highest Temperature 108 | . 108 105 Average Temperature 54 | . 55 54 Received Heat Transfer 264 | . . 264 Siege Activations . | . . . Robots Corrupted . | . . . Combat Hostiles . | . . . Parts Fried 1 | . 1 . Impact Corruptions . | . . . Robots Melted . | . . . Combat Hostiles . | . . . Parts Melted . | . . . Heat Transferred 450 | . 100 350 Parts Sabotaged . | . . . Parts Stolen . | . . . Parts Stripped . | . . . Power Chain Reactions 4 | . 1 3 Missiles Intercepted . | . . . Alert | -11 -10 -9 ------- Run | Jun Mat Mat Peak Influence 129 | . 104 129 Initial 7 | . . 7 Average 45 | . 31 73 Maximum Alert Level . | . . . Low Security (%) 100 | 100 100 100 Level 1 . | . . . Level 2 . | . . . Level 3 . | . . . Level 4 . | . . . Level 5 . | . . . High Security . | . . . Max Security . | . . . Squads Dispatched 2 | . 1 1 Investigation 2 | . 1 1 Extermination . | . . . Reinforcement . | . . . Assault . | . . . Garrison . | . . . Intercept . | . . . Searches Triggered . | . . . Construction Impeded . | . . . Haulers Reinforced . | . . . Active Scanning Responses . | . . . Cargo Convoy Interrupts . | . . . Stealth | -11 -10 -9 --------- Run | Jun Mat Mat Distress Signals . | . . . Communications Jammed . | . . . Distress Signals . | . . . Times Spotted 19 | . 5 14 Peak Tracking Total 8 | . 4 8 Tactical Retreats . | . . . Traps | -11 -10 -9 ------- Run | Jun Mat Mat Traps Triggered 1 | . . 1 Indirectly . | . . . Trap Hack Attempts . | . . . Triggered . | . . . Disarmed . | . . . Reprogrammed . | . . . Reused . | . . . Traps Extracted . | . . . Installed . | . . . Triggered . | . . . Machines | -11 -10 -9 ---------- Run | Jun Mat Mat Machines Disabled 1 | . . 1 Max in Single Turn 1 | . . 1 Machines Repaired . | . . . Machines Sabotaged . | . . . Overloaded Fab Kills . | . . . Hacking | -11 -10 -9 --------- Run | Jun Mat Mat Machines Accessed 3 | . 2 1 Terminals 3 | . 2 1 Fabricators . | . . . Repair Stations . | . . . Recycling Units . | . . . Scanalyzers . | . . . Garrison Access . | . . . Total Hacks 9 | . 6 3 Successful 8 | . 5 3 Failed 1 | . 1 . Catastrophic . | . . . Database Lockouts . | . . . Manual . | . . . Terminals 9 | . 6 3 Fabricators . | . . . Repair Stations . | . . . Recycling Units . | . . . Scanalyzers . | . . . Garrison Access . | . . . Terminal Hacks 8 | . 5 3 Record 1 | . . 1 Prototype ID Bank 1 | . . 1 Alert Level 3 | . 3 . Unreport Threat 1 | . 1 . Locate Traps 2 | . 1 1 Fabricator Hacks . | . . . Repair Station Hacks . | . . . Recycling Unit Hacks . | . . . Scanalyzer . | . . . Garrison Access Hacks . | . . . Unauthorized Hacks . | . . . Terminals . | . . . Fabricators . | . . . Repair Stations . | . . . Recycling Units . | . . . Scanalyzers . | . . . Garrison Access . | . . . Data Cores Recovered . | . . . Used . | . . . Hacking Detections 2 | . 2 . Full Trace Events 1 | . 1 . Feedback Events . | . . . Feedback Blocked . | . . . Robot Schematics Acquired . | . . . Robots Built . | . . . Authchips . | . . . Time . | . . . Total Robot Build Rating . | . . . Part Schematics Acquired . | . . . Parts Built . | . . . Authchips . | . . . Time . | . . . Total Part Build Rating . | . . . Parts Repaired . | . . . Time . | . . . Parts Recycled . | . . . Recycled Matter . | . . . Retrieved Matter . | . . . Retrieved Components . | . . . Parts Scanalyzed . | . . . Part Schematics Acquired . | . . . Parts Damaged . | . . . Bothacking | -11 -10 -9 ------------ Run | Jun Mat Mat Used RIF Installer . | . . . Robots Hacked . | . . . Non-combat . | . . . Combat . | . . . Robot Hacks Applied . | . . . Relay Couplers Released . | . . . Fabnet Peak Effective % . | . . . Robots Rewired . | . . . Allies Hacked . | . . . Hacks Repelled . | . . . Allies | -11 -10 -9 -------- Run | Jun Mat Mat Total Allies . | . . . Largest Group . | . . . Highest-Rated Group . | . . . Highest-Rated Ally . | . . . Total Orders . | . . . Ally Attacks . | . . . Total Damage . | . . . Kills . | . . . Allies Corrupted . | . . . Allies Melted . | . . . Intel | -11 -10 -9 ------- Run | Jun Mat Mat Robot Analysis Total . | . . . Derelict Logs Recovered . | . . . Drone Launches . | . . . Drone Recoveries . | . . . Exploration | -11 -10 -9 ------------- Run | Jun Mat Mat Turns Passed 421 | 57 178 186 Spaces Moved 331 | 56 168 107 Core 41 | 12 . 29 Treads . | . . . Legs . | . . . Wheels 290 | 44 168 78 Hover . | . . . Flight . | . . . Fastest Speed 50 | 50 95 50 Average Speed 94 | 80 95 100 Slowest Speed 150 | 95 95 150 Overloaded Moves . | . . . Propulsion Burnouts . | . . . Robots Hopped . | . . . Cave-ins Triggered . | . . . Exploration Rate (%) 17 | 3 35 13 Regions Visited 2 Branch Regions . Pre-discovered Areas . | . . . Known Exits Taken . | . . . Unknown Exits Taken 2 | 1 1 . Scrap Searched . | . . . Spaces Dug . | . . . Terrain Destroyed 16 | . 4 12 Melee . | . . . Projectile . | . . . AOE 16 | . 4 12 Terrain Rammed . | . . . Walls Destroyed . | . . . Machines Disabled . | . . . Actions | -11 -10 -9 --------- Run | Jun Mat Mat Total 390 | 68 174 148 Wait 8 | . . 8 Move 329 | 55 167 107 Hop . | . . . Pick Up 13 | 8 1 4 Fast Attach . | . . . Attach 9 | 5 . 4 Detach . | . . . Swap . | . . . Drop . | . . . Fire 25 | . 6 19 Melee 6 | . . 6 Ram . | . . . Kick . | . . . Crush . | . . . Escape Stasis . | . . . Rewire . | . . . Trap . | . . . Miscellaneous . | . . . Route ------- -11/Junkyard -10/Materials -9/Materials History --------- Turn | Location | Event 18 | -11/Junkyard | Discovered new exit (range 16) 58 | -11/Junkyard | Entered Materials 217 | -10/Materials | Discovered new exit (range 16) 236 | -10/Materials | Entered another Materials area 236 | -9/Materials | Evolved 2 slots: Utility x2 306 | -9/Materials | Build established: Mutant 411 | -9/Materials | Core integrity fell below 50% 419 | -9/Materials | Core integrity fell below 20% 422 | -9/Materials | Destroyed by G-34 Mercenary with Small Laser Last Messages --------------- 00368_ EM Pulse Gun destroyed. 00369_ Acquired 5 matter. 00371_ Acquired 10 matter. 00376_ Wheel destroyed. 00376_ U-05 Engineer lays Concrete. 00378_ G-34 Mercenary destroyed. 00379_ U-05 Engineer lays Concrete. 00381_ Acquired 2 matter. 00381_ U-05 Engineer lays Concrete. 00390_ K-01 Serf cleans the Atomic Centrifuge. 00399_ Lgt. Assault Rifle destroyed. 00399_ K-01 Serf cleans the Atomic Centrifuge. 00406_ K-01 Serf collects debris. 00407_ S-10 Pest destroyed. 00413_ Sml. Storage Unit destroyed. 00413_ System corrupted by crushing effect (+1). 00418_ Hammer destroyed. 00419_ B-36 Bruiser destroyed. 00421_ S-10 Pest suffers critical hit (Burn). 00421_ S-10 Pest destroyed. Map ----- +----------------------------------------------------+ | ?????????????????????????????????????????????????? | | ?????????????????????????????????????????????????? | | ?????????????????????????? ????????????????????? | | ?????????????????????????# ????????????????????? | | ?????????????????????????# ????????????????????? | | ?????????????????????????# #???????????????????? | | ?????????????????????????# #???????????????????? | | ?????????????????????????# #???????????????????? | | ?????????????????????????# #####???????????????? | | ?????????????????????????# # ???????????????? | | ????????????????????????## # ???????????????? | | ?????????????????????????T # ???????????????? | | ??????????????############ +? ??????????????? | | ?????????????? #?? ??????????????? | | ????????????? #??? ??????????????? | | ????????????? #?#################?? | | ????????????? ###"" ""## #?? | | ????????????? %! %% # "" #??? | | ??????????????# ##### * % ^^#// T" #??? | | ?????????????????????????# "/ "" #??? | | ???????????????????????####+####### # #??? | | ???????????????????????# r #?#" %%!#+#####??? | | ???????????????????????# """ #?## #????? | | ???????????????????????#gsY"""m #?#" #????? | | ???????????????????????#![["g" #?## #????? | | ???????????????????????#%@%* ######### #????? | | ???????????????????????#%!= "" ## # =###### | | ???????????????????????# """ ## + [%+! | | ???????????????????????# S" ## """ # =#[| | | ???????????????????????# ## """ + # | | ???????????????????????########### """ ##### | | ?????????????????????????????????# ????# | | ?????????????????????????????????######?????# ! | | ????????????????????????????????????????????###### | | ?????????????????????????????????????????????????? | | ?????????????????????????????????????????????????? | | | | | | | | | | | | | | | | | | | | | | | | | | | | | +----------------------------------------------------+ Best States ------------- Heat Dissipation 28 Energy Generation 10 Energy Capacity 125 Matter Stores 300 Matter Capacity 300 Sight Range 16 Terrain Scan Density 10 Evasion (%) 50 Item Schematics ----------------- None Robot Schematics ------------------ None Fabricated ------------ Nothing Alien Tech Used ----------------- None Achievements -------------- None Challenges ------------ None Game ------ Seed CoordinationQuantumScreen Manual? 0 Play Time 00:06:57 Cumulative 118.6 hours Start 2023.12.28 @ 21:31:16 End 2023.12.28 @ 21:40:15 Sessions 1 Manual Loads 0 Difficulty Rogue Special Mode None Game No. 114 Rogue 114 Adventurer 0 Explorer 0 Win Type - Total 0 Types 0/0/0/0/0/0/0/0/0 Lore% 35 Gallery% 41 Achievement% 30 Wizard Run 0 Options --------- ASCII 0 Keyboard 0 Movement Arrows Keybinds 0 Fullscreen 1 Font 18/SmallcapsGlow Map View 76x50 Tactical HUD 1 Map Filters NONE Filters NONE Steam 1 RUN: 4feac08e-1b71-4db3-b822-9f49c430af76